bitfinex-derivatives/quotes_ETHF0:USTF0_20240925
["timestamp","ask_amount","ask_price","bid_price","bid_amount"]
[1727240489494,1.47360932,2625.1,2624.9,0.38094]
[1727240489783,4.72578342,2625.2,2624.9,0.38094]
[1727240489784,1.47360932,2625.0,2624.9,0.38094]
[1727240489998,1.47360932,2625.0,2624.9,1.97389425]
[1727240490191,1.47360932,2625.0,2624.9,5.78349425]
[1727240490687,1.66418843,2625.1,2624.9,5.78349425]
[1727240490996,1.47360932,2625.0,2624.9,1.97389425]
[1727240491381,1.47360932,2625.0,2624.9,5.78349425]
[1727240491887,1.47360932,2625.0,2624.9,5.40255425]
[1727240492592,4.34487342,2625.2,2625.0,0.38093]
[1727240492781,1.47421339,2625.1,2625.0,0.38093]
[1727240492976,1.47421339,2625.1,2625.0,1.97388425]
[1727240493186,1.47421339,2625.3,2625.2,0.3809]
[1727240493388,1.47421339,2625.3,2625.2,1.97385425]
[1727240493592,1.47421339,2625.4,2625.2,11.40175425]
[1727240493794,3.85421339,2625.5,2625.3,4.63648]
[1727240494092,3.85421339,2625.5,2625.3,2.42063425]
[1727240494582,3.85421339,2625.5,2625.4,3.8088]
[1727240494781,2.76086,2625.5,2625.3,2.03975425]
[1727240494985,3.85421339,2625.5,2625.3,2.42063425]
[1727240495597,3.85421339,2625.5,2625.4,0.38087]
[1727240495782,1.17453256,2626.0,2625.4,17.31719019]
[1727240495985,0.4382,2626.5,2625.7,4.15985]
[1727240496183,0.4382,2626.5,2625.6,2.38]
[1727240496184,0.4382,2626.5,2626.0,3.2078]
[1727240496384,0.81891,2626.5,2626.1,0.4416]
[1727240496585,2.76074,2626.4,2626.1,0.4416]
[1727240496790,2.76074,2626.4,2626.1,0.82237]
[1727240496991,2.38,2626.4,2626.2,0.38075]
[1727240497491,0.38075,2626.3,2626.1,0.4416]
[1727240497797,2.38,2626.4,2626.1,0.82237]
[1727240497798,2.38,2626.2,2626.1,0.82237]
[1727240498095,2.38,2626.4,2626.3,0.38074]
[1727240498594,2.38,2626.4,2626.3,4.18794]
[1727240499592,2.38,2626.6,2626.5,0.3807]
[1727240499895,2.38,2626.6,2626.4,0.38072]
[1727240500295,2.38,2626.6,2626.5,0.38071]
[1727240501195,2.45660067,2626.9,2626.8,0.38067]
[1727240501594,2.45660067,2626.9,2626.8,4.18787]
[1727240501791,2.45660067,2626.9,2626.8,10.18787]
[1727240502188,2.45660067,2626.9,2626.8,4.18787]
[1727240502394,2.45660067,2626.9,2626.8,0.38067]
[1727240502693,2.45660067,2626.9,2626.8,4.18787]
[1727240503092,2.45660067,2626.9,2626.8,0.38067]
[1727240503401,2.45660067,2626.9,2626.8,4.18787]
[1727240503903,2.38,2627.1,2626.9,0.38064]
[1727240504110,2.38,2627.1,2627.0,0.38064]
[1727240504290,2.76063,2627.1,2626.9,0.4364]
[1727240504712,2.38,2627.1,2626.9,0.81704]
[1727240505603,2.76062,2627.1,2626.9,0.81704]
[1727240505907,2.38,2627.1,2626.9,0.81704]
[1727240506405,5.5878,2627.3,2626.9,0.4364]
[1727240506596,0.38061,2627.2,2627.0,0.4334]
[1727240506800,5.5878,2627.3,2627.0,0.81403]
[1727240506997,5.9684,2627.3,2627.0,0.81403]
[1727240507193,0.38062,2627.2,2627.0,0.81403]
[1727240507499,2.76062,2627.2,2627.0,0.81403]
[1727240508016,2.38,2627.2,2627.0,0.81403]
[1727240508298,5.70503876,2627.6,2627.5,1.33199]
[1727240508299,3.92191876,2627.6,2627.5,1.33199]
[1727240508504,4.39319755,2627.7,2627.6,0.38055]
[1727240508706,4.39319755,2627.7,2627.2,5.5878]
[1727240508895,4.39319755,2627.7,2627.5,0.38055]
[1727240509401,4.39319755,2627.7,2627.5,3.2078]
[1727240509604,4.39319755,2627.7,2627.6,3.8056]
[1727240509900,4.39319755,2627.7,2627.6,4.18615]
[1727240510911,4.39319755,2627.7,2627.6,3.8056]
[1727240511234,4.39319755,2627.7,2627.6,4.18615]
[1727240512405,4.39319755,2627.7,2627.6,4.62505]
[1727240518006,4.39319755,2627.7,2627.6,12.58275781]
[1727240519905,0.4254,2628.1,2627.6,12.58275781]
[1727240519906,0.3805,2628.0,2627.6,11.76330781]
[1727240520227,0.38052,2627.8,2627.5,3.58836]
[1727240520505,0.4254,2628.1,2627.5,3.58836]
[1727240520506,1.25754,2627.7,2627.5,0.38056]
[1727240520713,0.4199,2627.6,2627.4,0.38057]
[1727240521108,0.4199,2627.6,2627.5,0.38057]
[1727240528412,0.38052,2627.8,2627.5,7.39396]
[1727240528619,0.8368,2627.7,2627.5,3.58836]
[1727240531312,0.8368,2627.7,2627.6,0.38055]
[1727240531914,0.4276,2627.9,2627.8,0.38052]
[1727240532515,0.4276,2627.9,2627.5,3.2078]
[1727240532720,0.4276,2627.9,2627.8,0.38052]
[1727240534515,0.8408,2628.0,2627.9,0.38051]
[1727240534719,0.8412,2628.3,2628.1,0.38047]
[1727240534914,1.22166,2628.3,2627.9,3.2078]
[1727240535233,0.4424,2628.2,2628.1,0.38047]
[1727240536012,0.4424,2628.2,2628.1,6.56527]
[1727240537363,0.81313,2628.5,2628.3,0.38044]
[1727240537533,0.4424,2628.4,2628.3,0.38044]
[1727240538524,0.4424,2628.4,2628.2,0.38046]
[1727240538731,0.4424,2628.4,2628.3,0.38045]
[1727240540420,0.4424,2628.4,2628.2,3.2078]
[1727240540421,0.4085,2628.6,2628.2,3.2078]
[1727240540621,0.4085,2628.6,2628.4,0.38043]
[1727240541236,0.4085,2628.6,2628.2,3.2078]
[1727240541425,0.4085,2628.6,2628.3,2.76044]
[1727240541625,0.4085,2628.6,2628.3,2.38]
[1727240542034,1.35778,2628.8,2628.4,0.97472]
[1727240542235,0.19031222,2628.7,2628.4,0.97472]
[1727240542528,1.79368,2628.8,2628.4,0.97472]
[1727240543133,3.92657272,2628.8,2628.4,0.97472]
[1727240543332,0.19031167,2628.7,2628.4,0.5943]
[1727240543526,1.4133,2628.8,2628.5,0.38042]
[1727240543830,0.19031083,2628.7,2628.5,0.38042]
[1727240544425,1.4133,2628.8,2628.5,0.38042]
[1727240544627,1.4133,2628.8,2628.4,0.5943]
[1727240544837,0.3804,2628.7,2628.4,0.97473]
[1727240545027,3.73626906,2628.8,2628.4,0.97473]
[1727240545228,0.57071855,2628.7,2628.4,0.97473]
[1727240545426,0.3804,2628.7,2628.4,0.97473]
[1727240546030,0.38039,2628.7,2628.4,0.97473]
[1727240546427,0.38041,2628.6,2628.4,0.5943]
[1727240546632,3.35587906,2628.8,2628.2,3.2078]
[1727240546929,0.38041,2628.6,2628.3,0.38045]
[1727240547132,0.3804,2628.7,2628.3,0.38044]
[1727240547333,3.35587906,2628.8,2628.3,0.38044]
[1727240547520,0.38041,2628.6,2628.3,0.38044]
[1727240548223,0.3804,2628.7,2628.4,0.38043]
[1727240550933,2.13289702,2628.6,2628.4,0.38043]
[1727240551465,1.94257906,2628.7,2628.2,3.58826]
[1727240551729,1.94257906,2628.7,2628.3,0.38044]
[1727240551730,0.38041,2628.6,2628.3,0.38044]
[1727240551935,2.91722403,2630.3,2628.5,7.9678]
[1727240552126,3.8048,2630.3,2630.2,2.38]
[1727240552832,2.13981,2630.7,2630.2,2.76017]
[1727240553134,3.8048,2630.5,2630.4,5.5878]
[1727240553526,3.8048,2630.5,2629.6,0.95063]
[1727240553527,3.8048,2630.5,2630.2,2.38]
[1727240553730,3.8048,2630.5,2630.2,2.76017]
[1727240553929,3.8048,2630.5,2630.3,0.38016]
[1727240554131,3.8048,2630.5,2630.4,3.2078]
[1727240555030,3.8048,2630.5,2630.1,0.38018]
[1727240555230,3.8048,2630.2,2630.1,0.38018]
[1727240560835,3.8048,2630.2,2629.7,40.8]
[1727240560836,6.1848,2630.2,2629.7,3.2078]
[1727240561038,6.1848,2630.2,2629.7,3.58804]
[1727240561039,3.8048,2629.8,2629.7,3.58804]
[1727240561235,3.8048,2629.8,2629.6,0.38025]
[1727240561467,1.1671,2630.1,2629.4,3.2078]
[1727240561468,4.76865,2629.7,2629.4,3.58808]
[1727240561631,4.76865,2629.7,2629.4,11.76145947]
[1727240561632,3.8048,2629.5,2629.4,11.76145947]
[1727240561933,3.8048,2629.5,2629.4,3.2078]
[1727240562333,4.3995,2629.5,2629.4,3.2078]
[1727240562634,4.3995,2629.5,2629.4,3.58809]
[1727240562830,4.3995,2629.5,2629.4,3.2078]
[1727240563538,4.3995,2629.5,2629.4,3.58809]
[1727240567639,3.8048,2629.5,2629.4,3.58809]
[1727240576048,4.1842,2629.5,2629.4,3.58809]
[1727240577944,0.5836,2629.7,2629.6,0.38026]
[1727240578146,0.5836,2629.7,2629.6,2.76026]
[1727240580243,4.3884,2629.7,2629.6,2.76026]
[1727240581949,0.5836,2629.7,2629.6,2.76026]
[1727240582552,0.5836,2629.7,2629.6,10.92343589]
[1727240584548,0.5836,2629.7,2629.6,11.87409589]
[1727240584957,0.5836,2629.7,2629.6,10.92343589]
[1727240586757,0.089,2630.3,2630.2,0.38018]
[1727240587055,0.7749,2630.3,2630.2,3.2078]
[1727240587249,4.95986,2630.3,2630.2,3.2078]
[1727240587446,4.5797,2630.3,2630.2,3.58798]
[1727240587945,4.95986,2630.3,2630.2,3.2078]
[1727240588153,5.34756,2630.3,2630.2,3.2078]
[1727240588347,4.9674,2630.3,2630.2,3.2078]
[1727240588976,5.34756,2630.3,2630.2,44.0078]
[1727240589451,5.34756,2630.3,2630.2,3.2078]
[1727240589751,4.9674,2630.3,2630.2,3.58798]
[1727240590154,4.9674,2630.3,2630.2,3.2078]
[1727240590353,4.9674,2630.3,2630.2,3.58798]
[1727240590963,0.38014,2630.5,2630.3,0.38015]
[1727240591259,3.8048,2630.4,2630.3,0.38015]
[1727240592457,4.2062,2630.4,2630.3,0.38015]
[1727240593550,4.2062,2630.4,2630.3,0.38016]
[1727240594447,5.18768501,2630.4,2630.3,0.38016]
[1727240595552,5.56783501,2630.4,2630.3,0.38016]
[1727240595855,5.18768501,2630.4,2630.3,0.38016]
[1727240596150,5.67750279,2630.4,2630.3,0.38016]
[1727240596348,0.38018,2630.2,2630.1,0.38018]
[1727240596551,3.8048,2630.0,2629.8,3.2078]
[1727240596750,1.47130279,2630.3,2629.8,3.58803]
[1727240596751,4.186,2629.9,2629.8,3.58803]
[1727240597055,4.186,2629.9,2629.8,52.22478581]
[1727240602781,5.17135086,2629.9,2629.8,11.04455581]
[1727240602962,4.56622,2629.9,2629.8,3.2078]
[1727240603153,6.52918061,2629.9,2629.7,0.38024]
[1727240603352,1.48003303,2629.8,2629.7,0.38024]
[1727240603547,5.28483303,2629.8,2629.7,8.42692059]
[1727240603953,5.28483303,2629.8,2629.7,0.38024]
[1727240606257,5.28483303,2629.8,2629.5,5.5878]
[1727240606459,4.79173948,2629.6,2629.5,5.96807]
[1727240606859,4.79173948,2629.6,2629.5,14.0869157]
[1727240607364,3.8048,2629.6,2629.5,11.7069157]
[1727240608766,4.79174912,2629.6,2629.5,11.7069157]
[1727240610055,3.8048,2629.6,2629.5,11.7069157]
[1727240611866,4.79210762,2629.6,2629.5,11.7069157]
[1727240614054,3.8048,2629.6,2629.5,11.3266457]
[1727240614263,5.28483303,2629.6,2629.5,11.7069257]
[1727240615460,3.8048,2629.6,2629.5,11.7069257]
[1727240615661,5.28483303,2629.6,2629.5,11.7069257]
[1727240615861,5.66893303,2629.6,2629.5,11.7069257]
[1727240617867,5.66893303,2629.6,2629.5,8.4991257]
[1727240622179,5.66893303,2629.6,2629.5,49.2991257]
[1727240623886,5.66893303,2629.6,2629.5,8.1188457]
[1727240624075,5.66893303,2629.6,2629.5,8.4991257]
[1727240624383,5.66893303,2629.6,2629.5,0.38028]
[1727240624587,5.66893303,2629.6,2629.5,8.33543805]
[1727240627787,4.1889,2629.6,2629.5,8.33543805]
[1727240628884,5.17709816,2629.6,2629.5,8.33543805]
[1727240630885,1.37229816,2629.6,2629.5,8.33543805]
[1727240631084,1.37229816,2629.6,2629.5,11.54323805]
[1727240631085,5.17709816,2629.6,2629.5,11.54323805]
[1727240631887,5.17709816,2629.6,2629.5,12.49393805]
[1727240632089,1.48003303,2629.9,2629.6,0.95066]
[1727240632391,0.19,2630.1,2630.0,1.33072]
[1727240632691,0.19,2630.1,2630.0,10.27763596]
[1727240633690,0.19,2630.1,2630.0,9.32711596]
[1727240634391,0.19,2630.1,2630.0,10.59711596]
[1727240634791,0.19,2630.1,2630.0,17.54763596]
[1727240634986,0.19,2630.1,2630.0,16.59711596]
[1727240635386,0.19,2630.1,2630.0,10.59711596]
[1727240636595,1.48003303,2630.4,2630.3,0.38016]
[1727240636983,5.28483303,2630.4,2630.3,0.38016]
[1727240637891,3.8048,2630.4,2630.3,2.75016]
[1727240638398,3.8048,2630.4,2630.3,10.80539883]
[1727240642396,0.19,2630.5,2630.4,0.38015]
[1727240642596,3.9948,2630.5,2630.4,0.38015]
[1727240642903,3.9948,2630.5,2630.4,8.22116814]
[1727240644104,3.03e-06,2630.7,2630.6,1.33042]
[1727240644296,0.103,2631.8,2631.1,0.95011]
[1727240644602,3.0914,2631.6,2631.5,3.58779]
[1727240645103,3.0914,2631.6,2631.5,11.49353302]
[1727240645796,3.0914,2631.6,2631.5,13.86353302]
[1727240646201,3.0914,2631.6,2631.5,7.90574302]
[1727240646606,3.4579,2631.6,2631.5,7.90574302]
[1727240646813,3.4579,2631.6,2631.2,44.0078]
[1727240647101,3.0914,2631.3,2631.2,3.2078]
[1727240647301,3.47142,2631.3,2631.0,0.38006]
[1727240647500,3.0914,2631.1,2631.0,0.38006]
[1727240647800,3.0914,2631.1,2631.0,8.4895232]
[1727240648007,3.4722,2631.1,2631.0,8.4895232]
[1727240648205,3.4722,2631.1,2631.0,10.8595232]
[1727240649399,3.0914,2631.1,2631.0,10.8595232]
[1727240649602,0.3714,2631.2,2631.1,0.38005]
[1727240649803,0.3714,2631.2,2631.1,3.58785]
[1727240650141,0.3714,2631.2,2631.1,11.48639188]
[1727240651000,3.4628,2631.2,2631.1,11.48639188]
[1727240651710,0.3714,2631.2,2631.1,11.48639188]
[1727240654102,3.4628,2631.2,2631.1,11.48639188]
[1727240658715,3.4628,2631.2,2631.1,12.43651188]
[1727240658899,0.3714,2631.2,2631.1,12.43651188]
[1727240659504,0.7831,2631.7,2631.5,0.37998]
[1727240659704,3.4947,2631.6,2631.5,5.95778]
[1727240663807,3.4947,2631.6,2631.4,0.38]
[1727240664028,3.0914,2631.2,2631.1,5.95785]
[1727240664314,3.0914,2631.2,2631.1,14.13581257]
[1727240670511,3.0914,2631.2,2631.1,15.08593257]
[1727240670718,3.0914,2631.2,2631.1,14.13581257]
[1727240672515,3.0914,2631.2,2631.1,15.08593257]
[1727240673214,0.4033,2631.6,2631.5,0.37999]
[1727240673724,3.4947,2631.6,2631.5,0.37999]
[1727240682431,3.4947,2631.6,2631.2,0.38002]
[1727240682432,0.37999,2631.5,2631.2,0.38002]
[1727240682633,3.0914,2631.1,2631.0,3.2078]
[1727240682973,3.0914,2631.1,2631.0,0.38006]
[1727240683123,3.0914,2631.1,2631.0,1.47006]
[1727240683341,3.0914,2631.1,2631.0,4.67786]
[1727240683526,3.0914,2631.1,2631.0,12.56074136]
[1727240684438,3.0914,2631.1,2631.0,13.84074136]
[1727240688433,3.0914,2631.1,2631.0,14.83015999]
[1727240688933,3.0914,2631.1,2631.0,7.88288136]
[1727240689332,4.2427,2631.1,2631.0,0.38006]
[1727240689530,6.21290167,2631.1,2631.0,0.38006]
[1727240689731,4.2427,2631.1,2631.0,8.36586776]
[1727240690548,6.21290167,2631.1,2631.0,8.36586776]
[1727240691542,4.2427,2631.1,2631.0,11.57366776]
[1727240691933,6.21290167,2631.1,2631.0,3.2078]
[1727240692130,0.38008,2630.9,2630.7,3.2078]
[1727240692334,2.36045673,2630.9,2630.7,3.2078]
[1727240692529,3.0914,2630.8,2630.7,11.12744718]
[1727240692836,3.0914,2630.8,2630.7,8.29974718]
[1727240699547,3.0914,2630.8,2630.7,7.91964718]
[1727240699844,3.0914,2630.8,2630.6,0.38011]
[1727240700040,0.3819,2630.7,2630.6,8.51239432]
[1727240700234,3.4733,2630.7,2630.6,0.38011]
[1727240700435,3.4733,2630.7,2630.6,8.23256231]
[1727240700837,3.4733,2630.7,2630.6,7.85245231]
[1727240701144,3.4733,2630.7,2630.6,8.23257231]
[1727240702140,3.4733,2630.7,2630.6,7.85245231]
[1727240702438,0.38014,2630.5,2630.2,0.98941863]
[1727240702645,0.38013,2630.5,2630.3,0.38015]
[1727240702946,3.0914,2630.4,2630.3,0.38016]
[1727240703945,3.47155,2630.4,2630.2,0.38017]
[1727240704135,0.3965,2630.3,2630.2,0.38017]
[1727240704338,3.4879,2630.3,2630.2,8.2195923]
[1727240708444,3.4879,2630.3,2630.2,8.2196023]
[1727240711048,3.4879,2630.3,2630.2,7.8394223]
[1727240711252,3.4879,2630.3,2629.7,0.3818]
[1727240711253,11.8579,2630.3,2629.6,3.2078]
[1727240711557,3.0914,2629.7,2629.6,3.58806]
[1727240711753,3.47165,2629.7,2629.6,3.2078]
[1727240712052,3.47165,2629.7,2629.6,8.09723776]
[1727240712245,0.38027,2629.6,2629.3,3.5881]
[1727240712442,3.0914,2629.4,2629.3,3.58811]
[1727240714452,3.0914,2629.4,2629.3,0.38031]
[1727240714641,3.0914,2629.4,2629.2,0.38031]
[1727240714846,3.0914,2629.2,2629.1,2.75033]
[1727240715156,3.0914,2629.2,2629.1,10.89918435]
[1727240715749,3.0914,2629.2,2629.1,10.51885435]
[1727240716147,3.0914,2629.2,2629.1,8.14885435]
[1727240716352,3.0914,2629.2,2629.1,8.52918435]
[1727240718761,3.0914,2629.2,2629.1,10.89918435]
[1727240719359,3.0914,2629.2,2629.1,51.69918435]
[1727240720064,0.766,2629.6,2629.5,0.38028]
[1727240720265,3.8574,2629.6,2629.5,0.38028]
[1727240720960,3.8574,2629.6,2629.2,0.38032]
[1727240721150,3.0914,2629.3,2629.0,3.2078]
[1727240721355,3.47173,2629.1,2629.0,3.2078]
[1727240721759,3.85553,2629.1,2629.0,3.2078]
[1727240721958,0.38039,2628.7,2628.6,40.8]
[1727240722261,0.38039,2628.7,2628.5,0.38041]
[1727240722262,3.0914,2628.7,2628.5,0.38041]
[1727240722461,0.7839,2628.6,2628.5,0.38041]
[1727240722760,3.8753,2628.6,2628.5,8.27632228]
[1727240723264,3.8753,2628.6,2628.5,0.38041]
[1727240725762,3.8753,2628.6,2628.4,0.38043]
[1727240725959,0.7839,2628.6,2628.5,0.38042]
[1727240726159,3.8753,2628.6,2628.5,8.49764475]
[1727240726660,3.8753,2628.6,2628.5,0.38042]
[1727240727366,3.0914,2628.6,2628.5,2.75042]
[1727240730363,3.0914,2628.6,2628.5,0.38042]
[1727240731268,3.0914,2628.6,2628.5,2.75042]
[1727240731465,0.7791,2628.9,2628.8,0.38038]
[1727240731863,3.8705,2628.9,2628.8,0.38038]
[1727240732073,3.8705,2628.9,2628.7,0.38038]
[1727240732271,0.7791,2628.9,2628.7,0.38038]
[1727240732476,3.0914,2628.8,2628.7,0.38038]
[1727240735068,3.0914,2628.8,2628.6,0.3804]
[1727240735270,1.15947,2628.9,2628.6,0.3804]
[1727240735480,3.0914,2628.7,2628.6,0.3804]
[1727240738866,3.0914,2628.7,2628.6,0.774]
[1727240740080,3.0914,2628.7,2628.6,0.3804]
[1727240740969,3.0914,2628.7,2628.6,0.7826]
[1727240744073,3.0914,2628.7,2628.6,0.3804]
[1727240744277,3.0914,2628.7,2628.6,0.38041]
[1727240747979,3.0914,2628.7,2628.6,9.2034412]
[1727240754988,3.0914,2628.7,2628.6,8.2524212]
[1727240760393,3.0914,2628.7,2628.6,9.3524212]
[1727240760990,3.4978,2628.7,2628.6,9.3524212]
[1727240761890,3.4978,2628.7,2628.6,8.2524212]
[1727240762193,3.4978,2628.7,2628.6,9.3524212]
[1727240763385,4.48303017,2628.7,2628.6,8.2524212]
[1727240764293,3.4978,2628.7,2628.6,8.2524212]
[1727240765095,4.97996735,2628.7,2628.6,7.8720112]
[1727240765286,3.4978,2628.7,2628.4,3.2078]
[1727240765493,4.57491818,2628.5,2628.4,0.38044]
[1727240765897,4.57491818,2628.5,2628.4,8.4034976]
[1727240766422,3.0914,2628.5,2628.4,8.4034976]
[1727240767199,4.57538454,2628.5,2628.4,8.4034976]
[1727240768391,4.57538454,2628.5,2628.4,9.5034976]
[1727240768595,1.89038454,2628.7,2628.6,0.38041]
[1727240768896,1.89038454,2628.7,2628.6,9.28528869]
[1727240769201,4.98178454,2628.7,2628.6,9.28528869]
[1727240769895,4.57538454,2628.7,2628.6,9.28528869]
[1727240770089,4.57538454,2628.7,2628.6,10.95282217]
[1727240770090,4.08094025,2628.7,2628.6,10.95282217]
[1727240770295,4.08094025,2628.7,2628.6,13.17384217]
[1727240770495,4.08094025,2628.7,2628.6,14.65797012]
[1727240772194,3.0914,2628.7,2628.6,15.60899012]
[1727240772700,3.0914,2628.7,2628.6,15.6090823]
[1727240773308,0.98954025,2628.8,2628.7,1.33138]
[1727240773598,0.9900155,2628.9,2628.8,1.33133]
[1727240773797,3.0914,2628.9,2628.8,10.46669551]
[1727240773996,3.0914,2628.9,2628.8,18.60994699]
[1727240774797,0.9900155,2629.0,2628.9,1.33128]
[1727240775003,4.0814155,2629.0,2628.9,2.99891756]
[1727240775204,4.0814155,2629.0,2628.9,10.89924813]
[1727240775393,4.0814155,2629.0,2628.9,11.8963115]
[1727240775594,3.0914,2629.0,2628.9,10.22867394]
[1727240775795,4.08121472,2629.0,2628.9,10.74620124]
[1727240775991,4.08121472,2629.0,2628.9,10.7462043]
[1727240776196,4.08121472,2629.0,2628.9,10.22867394]
[1727240776598,4.08121472,2629.0,2628.9,10.74617123]
[1727240776800,4.08121472,2629.0,2628.9,10.22867394]
[1727240778104,4.08121472,2629.0,2628.9,9.27775394]
[1727240779294,4.08121472,2629.0,2628.9,8.28069057]
[1727240780109,4.0809823,2629.0,2628.9,8.28069057]
[1727240780410,4.08097638,2629.0,2628.9,8.28069057]
[1727240781203,4.08097638,2629.0,2628.9,9.27775394]
[1727240781412,4.08097638,2629.0,2628.9,8.28069057]
[1727240782502,4.08097638,2629.0,2628.9,9.27775394]
[1727240783605,4.08097638,2629.0,2628.9,8.28069057]
[1727240784207,4.08097638,2629.0,2628.9,9.27775394]
[1727240785512,3.0914,2629.0,2628.9,9.27775394]
[1727240789021,3.0914,2629.0,2628.9,12.48555394]
[1727240790309,3.0914,2629.0,2628.9,13.58555394]
[1727240803419,3.0914,2629.0,2628.9,12.48555394]
[1727240803619,3.0914,2629.0,2628.9,13.58555394]
[1727240805822,3.0914,2629.0,2628.9,14.53647394]
[1727240807120,0.98957638,2629.2,2629.1,2.28201]
[1727240807340,1.48398454,2629.7,2629.6,0.38026]
[1727240807620,3.0914,2629.7,2629.6,4.68806]
[1727240807829,3.0914,2629.7,2629.6,53.4204599]
[1727240811026,1.48398454,2629.9,2629.8,0.38023]
[1727240811327,1.98037673,2630.1,2629.9,0.38022]
[1727240811525,1.2091,2630.0,2629.9,0.38022]
[1727240811822,4.3005,2630.0,2629.9,0.38022]
[1727240812218,5.78337141,2630.0,2629.8,9.56975788]
[1727240812527,4.57411276,2629.9,2629.8,9.56975788]
[1727240813720,3.0914,2629.9,2629.8,9.56975788]
[1727240814129,4.57411276,2629.9,2629.8,11.29733788]
[1727240814423,4.57411276,2629.9,2629.5,0.38027]
[1727240814424,10.57162,2629.9,2629.5,0.38027]
[1727240814627,3.0914,2629.6,2629.5,0.38027]
[1727240815129,3.0914,2629.6,2629.5,8.232296]
[1727240816026,4.3018,2629.6,2629.5,8.232296]
[1727240816925,7.26453422,2629.6,2629.5,7.852026]
[1727240817119,11.78206,2629.6,2629.5,7.852026]
[1727240817316,13.76243673,2629.6,2629.5,7.852026]
[1727240817829,5.78206,2629.6,2629.5,7.852026]
[1727240818135,13.76243673,2629.6,2629.5,7.852026]
[1727240818320,7.76243673,2629.6,2629.5,7.852026]
[1727240818834,0.38028,2629.5,2629.4,0.38029]
[1727240819028,3.47168,2629.5,2629.4,0.38029]
[1727240819531,5.45205673,2629.5,2629.4,0.38029]
[1727240819722,3.47168,2629.5,2629.4,0.38029]
[1727240820225,5.45205673,2629.5,2629.4,0.38029]
[1727240820543,5.45205673,2629.5,2629.2,1.1]
[1727240820730,4.57415033,2629.3,2629.2,1.48032]
[1727240820917,5.07177673,2629.3,2628.9,3.2078]
[1727240821124,3.0914,2629.0,2628.9,3.58816]
[1727240821325,3.0914,2629.0,2628.9,45.48816]
[1727240821533,3.9402,2629.0,2628.9,53.41145418]
[1727240823420,3.9402,2629.0,2628.9,50.20365418]
[1727240823623,3.9402,2629.0,2628.9,53.41145418]
[1727240825934,3.0914,2629.0,2628.9,53.41145418]
[1727240826226,0.4017,2629.3,2628.9,54.02722854]
[1727240826536,3.0914,2629.2,2629.1,1.48033]
[1727240826726,3.0914,2629.2,2629.1,4.68813]
[1727240827035,3.0914,2629.2,2629.1,13.17752738]
[1727240835529,3.0914,2629.2,2629.1,9.96972738]
[1727240835834,3.0914,2629.2,2629.1,13.17752738]
[1727240838227,3.0914,2629.2,2629.1,14.12836738]
[1727240838430,3.0914,2629.2,2629.1,15.12450174]
[1727240838837,3.0914,2629.2,2629.1,15.64151116]
[1727240839040,3.0914,2629.2,2629.1,17.29684821]
[1727240840437,3.0914,2629.2,2629.1,18.33184821]
[1727240841033,1.2016,2629.6,2629.5,0.38028]
[1727240841338,1.2016,2629.6,2629.5,9.51281625]
[1727240841637,3.883,2629.6,2629.5,9.51281625]
[1727240841938,3.883,2629.6,2629.5,9.92271625]
[1727240842241,3.0914,2629.6,2629.5,9.92271625]
[1727240842539,0.8064,2629.9,2629.8,0.38023]
[1727240843046,3.8978,2629.9,2629.8,0.38023]
[1727240843933,3.8978,2629.9,2629.8,8.3029868]
[1727240844537,3.0914,2629.9,2629.8,8.3029868]
[1727240844738,3.0914,2629.9,2629.8,10.0980768]
[1727240844946,3.0914,2629.9,2629.8,13.26568291]
[1727240845440,0.8064,2630.2,2630.1,0.38019]
[1727240845635,3.8978,2630.2,2630.1,45.48799]
[1727240845833,3.8978,2630.2,2630.1,53.54333393]
[1727240846647,3.0914,2630.2,2630.1,53.54333393]
[1727240846946,0.069,2630.5,2630.4,0.38015]
[1727240847149,0.069,2630.5,2630.4,3.58795]
[1727240847340,3.1604,2630.5,2630.4,11.60305099]
[1727240847542,3.1604,2630.5,2630.4,12.02385099]
[1727240849345,0.069,2630.5,2630.4,12.02385099]
[1727240849646,0.069,2630.5,2630.4,12.42805099]
[1727240850735,0.069,2630.5,2630.4,11.60305099]
[1727240851041,0.069,2630.5,2630.4,13.73805099]
[1727240852751,0.9207,2630.8,2630.7,0.3801]
[1727240852954,0.9207,2630.8,2630.7,4.6879]
[1727240852955,0.069,2630.8,2630.7,4.6879]
[1727240853243,0.069,2630.8,2630.7,14.01020551]
[1727240855845,0.069,2630.8,2630.7,14.96046551]
[1727240857648,0.069,2630.8,2630.7,55.76046551]
[1727240858748,1.328,2631.2,2631.1,0.38005]
[1727240859054,1.328,2631.2,2631.1,9.65494209]
[1727240859249,4.4194,2631.2,2631.1,9.65494209]
[1727240861751,10.4194,2631.2,2630.6,3.58791]
[1727240862046,0.38005,2631.1,2630.8,9.4776737]
[1727240862249,3.0914,2630.9,2630.8,9.4776737]
[1727240862452,3.0914,2630.9,2630.8,1.48009]
[1727240862651,3.0914,2630.9,2630.8,9.52787076]
[1727240866753,3.0914,2630.9,2630.5,1.033]
[1727240866754,0.38009,2630.8,2630.5,3.58792]
[1727240867047,0.38009,2630.8,2630.0,1.03952]
[1727240867048,3.0914,2630.6,2630.4,1.48014]
[1727240867349,3.0914,2630.6,2630.1,3.2078]
[1727240867350,0.813,2630.7,2630.6,8.07531819]
[1727240867553,11.94496,2630.7,2630.6,3.00571819]
[1727240867747,0.38013,2630.5,2630.3,0.38016]
[1727240867948,0.38014,2630.5,2630.3,0.38016]
[1727240868248,4.18175,2630.4,2630.3,7.88119905]
[1727240868455,4.18175,2630.4,2630.2,8.26136905]
[1727240868655,3.8016,2630.3,2630.2,0.38017]
[1727240869049,4.18176,2630.3,2630.2,7.86817167]
[1727240869250,4.18176,2630.3,2630.1,0.38018]
[1727240869551,0.38016,2630.3,2630.1,0.38018]
[1727240869757,4.18176,2630.3,2630.1,0.38018]
[1727240869952,4.18176,2630.3,2630.0,0.38019]